Cogmind - Beta 15 @@@ ROGUE MODE // 2025.08.07 @ 02:09:49 Player: Skysub Result: Self-destructed Performance ------------- Evolutions (2) 1000 Regions Visited (5) 1000 Robots Destroyed (50) 250 Value Destroyed (1273) 1273 Prototype IDs (26) 520 Alien Tech Used (0) 0 Bonus (340) 340 TOTAL SCORE: 4383 Bonus ------- Follower Combat Kills 40 Aligned with FarCom 300 Cogmind --------- Core Integrity 421/550 Matter 290/300 Energy 236/250 System Corruption 0% Temperature Cool (0) Movement Rolling (165) Ox5 Location -8/Materials Parts ------- > --- POWER (1) -------- Ion Engine > --- PROPULSION (3) --- Improved Carbon-fiber Leg Improved Carbon-fiber Leg Armored Wheel > --- UTILITY (5) ------ Improved Heat Sink Improved Heat Sink High-capacity Storage Unit Light Armor Plating Insulated Plating > --- WEAPON (2) ------- Guided Plasma Cannon Faulty Enhanced Autogun > --- INVENTORY (20) --- Advanced Treads Carbon-fiber Leg Improved Carbon-fiber Leg Improved Carbon-fiber Leg Wheel Medium Matter Pod (100) Structural Scanner Experimental Sensor Array Improved Signal Interpreter Targeting Computer Light Armor Plating Hacking Suite Splice Drone Bay (6/6) Medium Laser Small Laser Gauss Rifle Grenade Launcher Grenade Launcher Mining Laser Peak State ------------ > --- POWER ------------ Ion Engine > --- PROPULSION ------- Improved Carbon-fiber Leg Improved Carbon-fiber Leg Armored Wheel > --- UTILITY ---------- Improved Heat Sink Improved Heat Sink High-capacity Storage Unit Light Armor Plating Insulated Plating > --- WEAPON ----------- Guided Plasma Cannon Chainsword > --- INVENTORY -------- Advanced Treads Carbon-fiber Leg Improved Carbon-fiber Leg Improved Carbon-fiber Leg Wheel Medium Matter Pod Structural Scanner Experimental Sensor Array Improved Signal Interpreter Targeting Computer Light Armor Plating Hacking Suite Splice Drone Bay Medium Laser Small Laser Gauss Rifle Grenade Launcher Grenade Launcher Mining Laser [Rating: 39] Favorites ----------- Power Ion Engine Engine Ion Engine Propulsion Light Treads Treads Light Treads Leg Improved Carbon-fiber Leg Wheel Wheel Utility High-capacity Storage Unit Device Improved Heat Sink Storage High-capacity Storage Unit Protection Light Armor Plating Weapon Light Assault Rifle Energy Gun Small Laser Energy Cannon Guided Plasma Cannon Ballistic Gun Light Assault Rifle Launcher Grenade Launcher Slashing Weapon Chainsword Build | -11 -10 -10 -10 -9 -8 ------- Run | Yrd Mat Min Exi Min Mat Slots Evolved 4 | . . . . . 4 Power . | . . . . . . Propulsion 1 | . . . . . 1 Utility 3 | . . . . . 3 Weapon . | . . . . . . Parts Attached 35 | 7 4 6 1 6 11 Power 3 | 1 . 1 . 1 . Engine 3 | 1 . 1 . 1 . Core . | . . . . . . Reactor . | . . . . . . Propulsion 10 | 2 2 . . 2 4 Treads 5 | 2 1 . . 1 1 Leg 2 | . . . . . 2 Wheel 3 | . 1 . . 1 1 Hover . | . . . . . . Flight . | . . . . . . Utility 13 | 2 2 1 . 3 5 Device 6 | 1 . . . 3 2 Storage 3 | 1 2 . . . . Processor . | . . . . . . Hackware . | . . . . . . Protection 4 | . . 1 . . 3 Artifact . | . . . . . . Weapon 9 | 2 . 4 1 . 2 Energy Gun 2 | 2 . . . . . Energy Cannon 1 | . . . 1 . . Ballistic Gun 3 | . . 2 . . 1 Ballistic Cannon . | . . . . . . Launcher 2 | . . 2 . . . Special Weapon . | . . . . . . Impact Weapon . | . . . . . . Slashing Weapon 1 | . . . . . 1 Piercing Weapon . | . . . . . . Special Melee Weapon . | . . . . . . Unidentified Prototypes 3 | . . . . 2 1 Parts Lost 6 | . . 3 . 1 2 Power 1 | . . 1 . . . Propulsion 2 | . . 1 . 1 . Utility 2 | . . 1 . . 1 Weapon 1 | . . . . . 1 Highest Loss Streak 2 | . . 2 . 1 2 To Critical Strikes . | . . . . . . Average Backups 13 | 2 9 13 13 14 18 Power . | . 1 1 1 . . Propulsion 2 | 1 2 2 2 1 4 Utility 5 | . 2 4 5 6 7 Weapon 5 | . 3 5 5 6 6 Tool/Special . | . . . . . . Unused Backups 18 | . 1 . . . 17 Power 1 | . . . . . 1 Propulsion 8 | . 1 . . . 7 Utility 5 | . . . . . 5 Weapon 4 | . . . . . 4 Tool/Special . | . . . . . . Average Slot Usage (%) 96 | . 100 95 85 99 94 Engine 11 | . 14 10 . 13 9 Treads 19 | . 26 14 14 22 14 Wheel 8 | . 1 14 14 4 8 Device 11 | . 14 9 . 13 13 Storage 13 | . 14 14 14 14 9 Protection 5 | . . 4 14 . 17 Energy Gun 6 | . 28 8 . . . Energy Cannon 6 | . . . . 14 9 Ballistic Gun 9 | . . 15 14 9 7 Launcher 3 | . . 4 14 4 . Peak Build Rating 39 | 7 8 10 14 24 39 Average Rating 14 | 5 7 8 7 18 26 On Entrance 9 | . 7 8 7 14 19 Naked Turns . | . . . . . . Heaviest Build 70 | 14 49 50 56 66 70 Greatest Support 40 | 40 40 10 10 40 36 Greatest Overweight (x) 6 | . 4 4 5 5 6 Average Overweight (x) 3 | . . 4 4 2 5 Largest Inventory Capacity 20 | 8 20 20 20 20 20 Average Capacity 18 | 7 13 20 20 20 20 Most Carried 20 | 3 13 15 14 17 20 Average Carried 13 | 2 9 13 13 14 18 Final Capacity 20 | 8 20 20 20 20 20 Final Carried 19 | 3 13 13 14 17 19 Class Distribution -------------------- 63% | Mutant 36% | Scavenger-Mutant Dominant Class ---------------- Mutant | -10/Materials Mutant | -10/Mines Mutant | -10/Exiles Scavenger-Mutant | -9/Mines Scavenger-Mutant | -8/Materials Resources | -11 -10 -10 -10 -9 -8 ----------- Run | Yrd Mat Min Exi Min Mat Matter Collected 811 | 270 110 216 . 100 115 Remotely . | . . . . . . Salvage Created 1808 | 130 297 172 . 292 917 Parts 89 | 7 20 5 . 22 35 Haulers Intercepted 3 | . 2 . . . 1 Recyclers Shooed 1 | . 1 . . . . Parts Field Recycled . | . . . . . . Retrieved Matter . | . . . . . . Parts Self-Destructed . | . . . . . . Prevented . | . . . . . . Kills | -11 -10 -10 -10 -9 -8 ------- Run | Yrd Mat Min Exi Min Mat Combat Hostiles Destroyed 44 | . 6 13 . 8 17 Melee 2 | . . . . . 2 Guns 16 | . 6 10 . . . Cannons 22 | . . . . 8 14 AOE 3 | . . 3 . . . Classes Destroyed 13 | 2 4 2 . 1 4 Worker 2 | . . 1 . 1 . Tunneler 3 | 2 . . . 1 . Hauler 3 | . 2 . . . 1 Recycler 2 | 1 . . . . 1 Operator 2 | . . . . . 2 Watcher 2 | . 1 . . . 1 Swarmer 12 | . 3 3 . 3 3 Grunt 16 | . 3 2 . 4 7 Brawler 1 | . . . . . 1 Duelist 2 | . . . . 1 1 Sentry 4 | . . . . . 4 Hunter 1 | . . . . . 1 Assembled 8 | . . 8 . . . Best Kill Streak 6 | 2 3 3 . 3 6 Combat Bots Only 5 | . 3 3 . 3 5 Max Kills in Single Turn 2 | 1 1 2 . 1 1 Gunslinging 1 | . . 1 . . . Exploded 2 | . . 2 . . . Melee 1 | . . . . . 1 Uniques/NPCs Destroyed . | . . . . . . Combat | -11 -10 -10 -10 -9 -8 -------- Run | Yrd Mat Min Exi Min Mat Hostile Shots Fired 139 | . 33 50 . 9 47 Missed 39 | . 11 18 . 1 9 Hits 100 | . 22 32 . 8 38 Melee 3 | . . . . . 3 Projectile 97 | . 22 32 . 8 35 Critical Strikes 4 | . . . . . 4 Part Disruptions 1 | . . 1 . . . Damage Taken 1463 | . 231 470 . 112 650 Core 322 | . 26 133 . 34 129 Absorbed by Shields . | . . . . . . Core Remaining (%) 61 | 100 . . . 22 . Volleys Fired 139 | 8 28 26 . 23 54 Largest 2 | 2 2 2 . 1 1 Hottest 120 | 90 90 70 . 120 120 Shots Fired 199 | 16 56 50 . 23 54 Gun 119 | 16 56 42 . 5 . Cannon 72 | . . . . 18 54 Launcher 8 | . . 8 . . . Special . | . . . . . . Kinetic 33 | . . 28 . 5 . Thermal 158 | 16 56 14 . 18 54 Explosive 8 | . . 8 . . . Electromagnetic . | . . . . . . Robot Hit Streak 39 | 3 5 7 . 8 39 Robot Miss Streak 3 | 3 2 3 . 1 . Penetration Max . | . . . . . . Secondary Targets 5 | . 2 3 . . . Max Gunslinging Chain 1 | . 1 1 . . . Shots Hit Robots 119 | 8 35 27 . 11 38 Core Hits 73 | 4 15 23 . 11 20 Critical Kills . | . . . . . . Critical Parts Destroyed . | . . . . . . Critical Strikes 1 | . 1 . . . . Burn 1 | . 1 . . . . Melee Attacks 3 | . . . . . 3 Impact . | . . . . . . Slashing 3 | . . . . . 3 Piercing . | . . . . . . Sneak Attacks . | . . . . . . Combat Hostiles . | . . . . . . Follow-up Attacks . | . . . . . . Damage Inflicted 3805 | 111 448 578 . 634 2034 Guns 766 | 111 426 199 . 30 . Cannons 2527 | . . . . 600 1927 Explosions 361 | . . 361 . . . Melee 107 | . . . . . 107 Ramming 44 | . 22 18 . 4 . Kinetic 131 | . . 101 . 30 . Thermal 3162 | 111 426 98 . 600 1927 Explosive 361 | . . 361 . . . Electromagnetic . | . . . . . . Impact . | . . . . . . Slashing 107 | . . . . . 107 Piercing . | . . . . . . Highest Corruption . | . . . . . . Average Corruption . | . . . . . . Corruption Purged . | . . . . . . Corruption Blocked . | . . . . . . Overload Shots . | . . . . . . Overflow Damage 84 | . . . . 2 82 Projectiles 67 | . . . . 2 65 Explosions . | . . . . . . Melee 17 | . . . . . 17 Knockbacks . | . . . . . . Impact . | . . . . . . Kinetic . | . . . . . . Secondary . | . . . . . . Self-Inflicted Damage 46 | . . 46 . . . Shots 3 | . . 3 . . . Rammed 5 | . 3 1 . 1 . Targets Rammed 5 | . 3 1 . 1 . Kicked . | . . . . . . Crushed . | . . . . . . Highest Temperature 357 | 210 342 102 . 349 357 Average Temperature 119 | 95 117 35 . 123 149 Received Heat Transfer 683 | . 84 260 . 51 288 Effects 5 | . . . . 1 4 Energy Bleed 1 | . . . . . 1 Interference 4 | . . . . 1 3 Siege Activations . | . . . . . . Martial Activations . | . . . . . . Shielding Activations . | . . . . . . Robots Disrupted . | . . . . . . Combat Hostiles . | . . . . . . Robots Corrupted . | . . . . . . Combat Hostiles . | . . . . . . Parts Fried . | . . . . . . Impact Corruptions . | . . . . . . Robots Melted 1 | . . . . . 1 Combat Hostiles 1 | . . . . . 1 Parts Melted 19 | 1 . . . 7 11 Heat Transferred 7368 | 297 1166 225 . 1360 4320 Parts Sabotaged . | . . . . . . Parts Stolen . | . . . . . . Parts Stripped . | . . . . . . Power Chain Reactions . | . . . . . . Alert | -11 -10 -10 -10 -9 -8 ------- Run | Yrd Mat Min Exi Min Mat Maximum Alert Level . | . . . . . . Low Security (%) 100 | 100 100 100 . 100 100 Level 1 . | . . . . . . Level 2 . | . . . . . . Level 3 . | . . . . . . Level 4 . | . . . . . . Level 5 . | . . . . . . High Security . | . . . . . . Max Security . | . . . . . . Peak Influence 136 | 10 60 70 . 115 136 Initial . | . . . . . . Average 23 | 1 15 9 . 18 70 Influence Increases 1169 | 15 180 198 . 257 519 Destroy 0b10 Robot/C 760 | . 120 100 . 180 360 Destroy 0b10 Robot/NC 70 | 15 15 5 . 10 25 Destroy Leader 190 | . 36 20 . 30 104 Allied During Kill 51 | . . . . 21 30 Successful Hack 9 | . 9 . . . . Destroy Structure 44 | . . 43 . 1 . Lose Combat Pursuer 45 | . . 30 . 15 . Influence Decreases 1042 | 15 180 198 . 257 392 Time Decay 907 | 15 180 193 . 227 292 Lost Part 35 | . . 5 . 10 20 Lost Ally 100 | . . . . 20 80 Squads Dispatched 3 | . 1 . . . 2 Investigation 1 | . 1 . . . . Extermination . | . . . . . . Reinforcement 2 | . . . . . 2 Assault . | . . . . . . Garrison . | . . . . . . Intercept . | . . . . . . Searches Triggered . | . . . . . . Construction Impeded . | . . . . . . Haulers Reinforced . | . . . . . . Active Scanning Responses . | . . . . . . Cargo Convoy Interrupts . | . . . . . . Stealth | -11 -10 -10 -10 -9 -8 --------- Run | Yrd Mat Min Exi Min Mat Distress Signals 3 | . . . . . 3 Communications Jammed . | . . . . . . Distress Signals . | . . . . . . Times Spotted 52 | . 9 15 . 7 21 Peak Tracking Total 7 | . 4 3 . 4 7 Tactical Retreats 2 | . . 1 . 1 . Traps | -11 -10 -10 -10 -9 -8 ------- Run | Yrd Mat Min Exi Min Mat Traps Triggered 1 | . 1 . . . . Indirectly . | . . . . . . Trap Hack Attempts . | . . . . . . Triggered . | . . . . . . Disarmed . | . . . . . . Reprogrammed . | . . . . . . Reused . | . . . . . . Traps Extracted . | . . . . . . Installed . | . . . . . . Triggered . | . . . . . . Machines | -11 -10 -10 -10 -9 -8 ---------- Run | Yrd Mat Min Exi Min Mat Machines Disabled . | . . . . . . Max in Single Turn . | . . . . . . Machines Repaired . | . . . . . . Machines Dismantled . | . . . . . . Machines Sabotaged . | . . . . . . Overloaded Fab Kills . | . . . . . . Hacking | -11 -10 -10 -10 -9 -8 --------- Run | Yrd Mat Min Exi Min Mat Machines Accessed 5 | . 3 . 1 1 . Terminals 2 | . 2 . . . . Fabricators . | . . . . . . Repair Stations . | . . . . . . Recycling Units 1 | . 1 . . . . Scanalyzers . | . . . . . . Garrison Access . | . . . . . . Total Hacks 9 | . 7 . 1 1 . Successful 5 | . 3 . 1 1 . Failed 4 | . 4 . . . . Catastrophic . | . . . . . . Database Lockouts . | . . . . . . Manual 3 | . 2 . 1 . . Terminals 6 | . 6 . . . . Fabricators . | . . . . . . Repair Stations . | . . . . . . Recycling Units 1 | . 1 . . . . Scanalyzers . | . . . . . . Garrison Access . | . . . . . . Terminal Hacks 2 | . . . 1 1 . Open Door 1 | . . . . 1 . Proto ID Catalog 1 | . . . 1 . . Fabricator Hacks . | . . . . . . Repair Station Hacks . | . . . . . . Recycling Unit Hacks 1 | . 1 . . . . Report Inventory 1 | . 1 . . . . Scanalyzer . | . . . . . . Garrison Access Hacks . | . . . . . . Unauthorized Hacks 2 | . 2 . . . . Terminals 2 | . 2 . . . . Botnet 2 | . 2 . . . . Fabricators . | . . . . . . Repair Stations . | . . . . . . Recycling Units . | . . . . . . Scanalyzers . | . . . . . . Garrison Access . | . . . . . . Data Cores Recovered 1 | . . . . . 1 Used . | . . . . . . Hacking Detections 2 | . 2 . . . . Full Trace Events . | . . . . . . Feedback Events . | . . . . . . Feedback Blocked . | . . . . . . Robot Schematics Acquired . | . . . . . . Robots Built . | . . . . . . Authchips . | . . . . . . Time . | . . . . . . Total Robot Build Rating . | . . . . . . Part Schematics Acquired . | . . . . . . Parts Built . | . . . . . . Authchips . | . . . . . . Time . | . . . . . . Total Part Build Rating . | . . . . . . Parts Repaired . | . . . . . . Time . | . . . . . . Parts Recycled . | . . . . . . Recycled Matter . | . . . . . . Retrieved Matter . | . . . . . . Retrieved Components . | . . . . . . Parts Scanalyzed . | . . . . . . Part Schematics Acquired . | . . . . . . Parts Damaged . | . . . . . . Bothacking | -11 -10 -10 -10 -9 -8 ------------ Run | Yrd Mat Min Exi Min Mat Used RIF Installer . | . . . . . . Robots Hacked . | . . . . . . Non-combat . | . . . . . . Combat . | . . . . . . Robot Hacks Applied . | . . . . . . Relay Couplers Released . | . . . . . . Fabnet Peak Effective % . | . . . . . . Robots Rewired . | . . . . . . Allies Hacked . | . . . . . . Hacks Repelled . | . . . . . . Allies | -11 -10 -10 -10 -9 -8 -------- Run | Yrd Mat Min Exi Min Mat Total Allies 5 | . . . . 5 . Largest Group 4 | . . . . 4 4 Highest-Rated Group 71 | . . . . 71 71 Highest-Rated Ally 31 | . . . . 31 31 Total Orders . | . . . . . . Ally Attacks 24 | . . . . 10 14 Total Damage 268 | . . . . 90 178 Kills 2 | . . . . 1 1 Allies Corrupted . | . . . . . . Allies Melted . | . . . . . . Intel | -11 -10 -10 -10 -9 -8 ------- Run | Yrd Mat Min Exi Min Mat Active Infowar (turns) 1273 | 21 574 677 . 1 . Sensors 1 | . . . . 1 . Seismic 1272 | 21 574 677 . . . Robot Analysis Total . | . . . . . . Derelict Logs Recovered 3 | . . 2 . 1 . Drone Launches . | . . . . . . Drone Recoveries . | . . . . . . Exploration | -11 -10 -10 -10 -9 -8 ------------- Run | Yrd Mat Min Exi Min Mat Turns Passed 4236 | 131 574 1054 297 1511 669 Spaces Moved 2264 | 62 297 678 211 713 303 Core 5 | 5 . . . . . Treads 676 | 57 237 . . 382 . Legs 3 | . . . . . 3 Wheels 1580 | . 60 678 211 331 300 Hover . | . . . . . . Flight . | . . . . . . Fastest Speed 50 | 50 140 140 140 155 155 Average Speed 165 | 151 155 140 140 200 169 Slowest Speed 330 | 160 160 140 155 240 330 Overloaded Moves . | . . . . . . Propulsion Burnouts . | . . . . . . Robots Hopped . | . . . . . . Potential Cave-ins . | . . . . . . Cave-ins Triggered . | . . . . . . Exploration Rate (%) 57 | 4 58 98 61 99 25 Regions Visited 5 Branch Regions 3 Pre-discovered Areas . | . . . . . . Known Exits Taken . | . . . . . . Unknown Exits Taken 5 | 1 1 1 1 1 . Scrap Searched 2 | . . 1 . 1 . Spaces Dug 1 | . . . . 1 . Terrain Destroyed 59 | . . 58 . 1 . Melee . | . . . . . . Projectile 1 | . . . . 1 . AOE 58 | . . 58 . . . Terrain Rammed . | . . . . . . Walls Destroyed . | . . . . . . Machines Disabled . | . . . . . . Actions | -11 -10 -10 -10 -9 -8 --------- Run | Yrd Mat Min Exi Min Mat Total 2547 | 80 349 735 212 768 403 Wait 46 | . 6 21 . 18 1 Move 2259 | 61 296 677 210 712 303 Hop . | . . . . . . Pick Up 37 | 4 10 2 1 3 17 Fast Attach 10 | 6 . . . 2 2 Attach 11 | 1 . 2 . 2 6 Detach 2 | . . . . 2 . Swap 21 | . 4 6 1 5 5 Drop 14 | . 2 . . . 12 Fire 139 | 8 28 26 . 23 54 Melee 3 | . . . . . 3 Ram 1 | . . 1 . . . Kick . | . . . . . . Crush 4 | . 3 . . 1 . Escape Stasis . | . . . . . . Rewire . | . . . . . . Trap . | . . . . . . Miscellaneous . | . . . . . . Route ------- -11/Scrapyard -10/Materials (discovered 3 exits: [*Mat x2] / [*Min]) -10/Mines (discovered 3 exits: [*Mat x2] / *Exi) -10/Exiles -9/Mines (discovered 2 exits: [*Mat x2]) -8/Materials (discovered 1 exit: Sto) History --------- Turn | Location | Event 21 | -11/Scrapyard | Discovered new exit (range 16) 132 | -11/Scrapyard | Entered Materials 281 | -10/Materials | Discovered new exit (range 16) 310 | -10/Materials | Build established: Mutant 493 | -10/Materials | Discovered new exit (range 8) 664 | -10/Materials | Discovered new exit (range 16) 706 | -10/Materials | Entered Mines 726 | -10/Mines | Met a Derelict bent on vengeance 757 | -10/Mines | Assembled infested the area 852 | -10/Mines | Learned Materials stockpile data 882 | -10/Mines | Deemed a non-threat by the Exiles lab entrance 1319 | -10/Mines | Discovered new exit (range 10) 1326 | -10/Mines | Discovered new exit (range 9) 1474 | -10/Mines | Core integrity fell below 50% 1520 | -10/Mines | Learned location of 1 exit from Materials 1754 | -10/Mines | Discovered new exit (range 5) 1760 | -10/Mines | Entered Exiles 1794 | -10/Exiles | Met 8R-AWN 1819 | -10/Exiles | Met EX-HEX 1861 | -10/Exiles | Met EX-BIN 1878 | -10/Exiles | Aligned with FarCom system 1879 | -10/Exiles | Given EX-Vault access code 1914 | -10/Exiles | Opened EX-Vault 1921 | -10/Exiles | Found Gui. Plasma Cannon 1949 | -10/Exiles | Warned to stay clear of 0b10 Research branches 1988 | -10/Exiles | Met EX-DEC 2037 | -10/Exiles | Discovered new exit (range 14) 2057 | -10/Exiles | Left Exiles lab with Gui. Plasma Cannon 2057 | -10/Exiles | Entered Mines 2146 | -9/Mines | Assisted by bots powering up and referring to "LRC-V3" 2342 | -9/Mines | Found the Drone Emporium 2353 | -9/Mines | Found Prototype Device 2353 | -9/Mines | Identified Splice Drone Bay 2656 | -9/Mines | Learned Materials garrison access intel 2809 | -9/Mines | Discovered new exit (range 8) 2891 | -9/Mines | Discovered new exit (range 10) 2893 | -9/Mines | Build established: Scavenger-Mutant 3082 | -9/Mines | Found a damaged Exp. Sensor Array with a note attached 3085 | -9/Mines | Found Prototype Device 3085 | -9/Mines | Identified Exp. Sensor Array 3568 | -9/Mines | Entered Materials 3568 | -8/Materials | Accompanied by 4 allies 3568 | -8/Materials | Evolved 4 slots: Propulsion x1, Utility x3 3569 | -8/Materials | Identified exit to Storage 3571 | -8/Materials | Loaded intel: 1 garrison access location 3573 | -8/Materials | Led the pair of lost Derelicts to an unsafe place 4237 | -8/Materials | Self-destructed Last Messages --------------- 04168_ Slug penetrates Wall. 04168_ Critical hit (Destroy). 04169_ Acquired 10 matter. 04171_ H-55 Commando destroyed. 04178_ R-06 Scavenger collects Hvy. Assault Rifle. 04179_ Acquired Gauss Rifle. 04182_ R-06 Scavenger collects Carbon-fiber Leg. 04183_ Lgt. Ion Engine melted. 04183_ R-06 Scavenger destroyed. 04188_ Acquired Carbon-fiber Leg. 04191_ G-47 Trooper destroyed. 04216_ Acquired Imp. Heat Sink. 04217_ Dropped Hrd. Light Armor Plating. 04218_ Weight Redist. System melted. 04218_ A-02 Transporter destroyed. 04220_ Acquired 10 matter. 04235_ Acquired Prototype Ballistic Gun. 04235_ Identified Enh. Autogun. 04235_ Gui. Plasma Cannon broken. 04235_ Faulty integration triggers power surge. Map ----- +----------------------------------------------------+ | ?????????????????????????????????? ???????????? | | ????????????????????????????????"" """ ?#########? | | ???????????????????????????????""" """ ?+ ## | | ????????????????????????????# """ """ # # | | ????????????????????????????# # # | | ????????????????????????????# + # | | ?????????????????##+##############+####### # | | ?????????????????# + # #????# # | | ?????????????????# # """ """ # #????# + | | ?????????????????# + """ "R" + ###### ### | | ?????????????????# # """ " " # #?# | | ?????????????##### # ! # #?# | | ?????????????#/ / #] # #?## | | ?????????????#// ############ # | | ?????????????#!! #??????????# # | | ?????????????#!!=! #??????????# + | | ?????????????# %== = #??????????# """ # | | ?????????????#===%%%=#??????????# """ # | | ?????????????#####=% #??????????# """ ###? | | ?????????????????#[! #??????????+ ###### | | ?????????????????#%% #??????????# # | | ????????????????## = ##????????## """ # | | ????????????????# ! ########## """ * # | | ???????# ###### =! = """ # | | ???????+ " u =%= %! + | | ???????# ###### [=@ * ###### | | ????????????????# #######+## """ #? | | ????????????????###+###?????? # """ #? """ | | ?????????w???????????????????? # """ # """ | | ?????????????????????????????? # # """ | | ?????????Y???????????????!?????# + | | ???????????????????????????????# """ # ! | | ???????????????????????????????# """ ###### | | ????????????????!??????????????# ! """ | | ???????????????????????????????# * %] = | | ???????????????????????######??#% % % | | ???????????????????????# ?# ############### | | ???????????????????????# ## #?????????????? | | ???????????????????????# + #?????????????? | | ???????????????????????#* ######????????###### | | ???????????????????????# ??????????????# | | ???????????????????????# ???????????????# | | ???????????????????????######???????????????# | | ????????????????????????????????????????????# !!! | | ??>?????????????????????????????????????????# !! | | ????????????????????????????????????????????# !! | | ????????????????????????????????????????????###### | | ?????????????????????????????????????????????????? | | ?????????????????????????????????????????????????? | | ?????????????????????????????????????????????????? | +----------------------------------------------------+ Best States ------------- Heat Dissipation 59 Energy Generation 14 Energy Capacity 250 Matter Stores 300 Matter Capacity 300 Sight Range 16 Terrain Scan Density 10 Armor Coverage 450 Resistance: EM 15 Evasion (%) 40 Recoil Reduction 2 Item Schematics ----------------- None Robot Schematics ------------------ None Fabricated ------------ Nothing Repaired ---------- Nothing Alien Tech Used ----------------- None Achievements -------------- None Challenges ------------ None Game ------ Seed NullNullPendant Manual? 0 Play Time 00:26:43 Cumulative 235.9 hours Start 2025.08.07 @ 01:41:50 End 2025.08.07 @ 02:09:49 Sessions 1 Manual Loads 0 Difficulty Rogue Special Mode None Game No. 249 Rogue 249 Adventurer 0 Explorer 0 Win Type - Total 10 Types 5/0/3/1/0/0/0/0/0/1 Lore% 74 Gallery% 70 Achievement% 64 Wizard Run 0 Options --------- Layout 1 ASCII 0 Keyboard 1 Movement Numpad Keybinds 0 Fullscreen 1 Font 32/SmallcapsGlow Map View 77x35 Zoom Use 0% Tactical HUD 1 Map Filters NONE Filters NONE Steam 1 RUN: f30b1a00-cbff-4571-a107-97f7837464c8